Cogmind - Beta 15 --- EXPLORER MODE // 2025.06.17 @ 20:33:12 Player: Goofy__J Result: Destroyed by P-80 Master with Gamma Rifle Performance ------------- Evolutions (8) 4000 Regions Visited (15) 3000 Robots Destroyed (210) 1050 Value Destroyed (10666) 10666 Prototype IDs (4) 80 Alien Tech Used (0) 0 Bonus (367) 367 TOTAL SCORE: 19163 Bonus ------- High Alert Combat Kills 26 Follower Combat Kills 41 Aligned with FarCom 300 Cogmind --------- Core Integrity 0/1450 Matter 294/300 Energy 100/100 System Corruption 46% Temperature Cool (0) Movement Core (50) Location -2/Research Parts ------- > --- POWER (4) -------- (None) > --- PROPULSION (7) --- (None) > --- UTILITY (8) ------ Targeting Computer Advanced Target Analyzer Advanced Target Analyzer Graphene Brace Hacking Suite > --- WEAPON (5) ------- (None) > --- INVENTORY (5) ---- Power Amplifier Advanced Heat Sink Improved Transmission Jammer Peak State ------------ > --- POWER ------------ Backup Power VII Micro Antimatter Reactor Micro Antimatter Reactor Micro Antimatter Reactor > --- PROPULSION ------- Myomer Leg Myomer Leg Myomer Leg Myomer Leg Biometal Leg Biometal Leg Improved Thunder Leg > --- UTILITY ---------- Advanced Heat Sink Advanced Heat Sink Advanced Heat Sink Targeting Computer Advanced Target Analyzer Advanced Target Analyzer Graphene Brace Hacking Suite > --- WEAPON ----------- Nova Cannon Enhanced Nova Cannon Enhanced Nova Cannon Enhanced Nova Cannon Heavy Machine Gun > --- INVENTORY -------- Power Amplifier Advanced Heat Sink Advanced Heat Sink Improved Transmission Jammer [Rating: 165] Favorites ----------- Power Micro Antimatter Reactor Engine Light Ion Engine Power Core Backup Power VII Reactor Micro Antimatter Reactor Propulsion Myomer Leg Treads Armored Treads Leg Myomer Leg Wheel Armored Huge Wheel Hover Unit Airjet Flight Unit VTOL Module Utility Hacking Suite Device Advanced Heat Sink Processor Targeting Computer Hackware Hacking Suite Protection Improved Medium Armor Plating Weapon Great Axe Energy Gun Quantum Rifle Energy Cannon YOLO Cannon Ballistic Gun Hypervelocity Railgun Ballistic Cannon Gauss Cannon Launcher Smartbomb Launcher Special Weapon Mining Laser Slashing Weapon Great Axe Piercing Weapon Lance Build | -11 -10 -10 -9 -9 -9 -8 -8 -7 -6 -5 -4 -4 -4 -3 -2 ------- Run | Yrd Mat Min Mat Min Exi Min Mat Fac Fac Fac Fac Upp Upp Res Res Slots Evolved 17 | . 1 . 2 . . . 2 2 2 2 2 . . 2 2 Power 3 | . . . 1 . . . . . 1 . . . . . 1 Propulsion 5 | . 1 . 1 . . . 1 . 1 . . . . 1 . Utility 6 | . . . . . . . 1 1 . 1 2 . . 1 . Weapon 3 | . . . . . . . . 1 . 1 . . . . 1 Parts Attached 145 | 4 4 5 7 3 1 2 6 17 10 5 8 8 . 18 47 Power 30 | 1 . . 2 . . 1 . 4 2 3 . 1 . 5 11 Engine 7 | 1 . . 2 . . . . 3 . . . . . 1 . Core 9 | . . . . . . 1 . 1 1 3 . . . . 3 Reactor 14 | . . . . . . . . . 1 . . 1 . 4 8 Propulsion 49 | 2 . 3 5 2 . . 4 6 3 . 5 2 . 3 14 Treads 8 | . . . . . . . 4 2 . . . . . . 2 Leg 24 | 2 . . . . . . . . . . 5 2 . 3 12 Wheel 7 | . . . . . . . . 4 3 . . . . . . Hover 3 | . . 2 1 . . . . . . . . . . . . Flight 7 | . . 1 4 2 . . . . . . . . . . . Utility 32 | 1 1 1 . 1 . . 1 4 5 . 1 2 . 4 11 Device 19 | . . 1 . . . . 1 2 1 . 1 2 . 2 9 Storage . | . . . . . . . . . . . . . . . . Processor 5 | . 1 . . . . . . . 1 . . . . 2 1 Hackware 3 | . . . . 1 . . . . 2 . . . . . . Protection 5 | 1 . . . . . . . 2 1 . . . . . 1 Artifact . | . . . . . . . . . . . . . . . . Weapon 34 | . 3 1 . . 1 1 1 3 . 2 2 3 . 6 11 Energy Gun 6 | . 1 . . . . 1 . . . . . 2 . 2 . Energy Cannon 10 | . . . . . 1 . . . . 1 1 1 . . 6 Ballistic Gun 8 | . . . . . . . . 1 . 1 . . . 3 3 Ballistic Cannon 3 | . . . . . . . 1 1 . . . . . 1 . Launcher 1 | . . . . . . . . . . . 1 . . . . Special Weapon 3 | . 2 1 . . . . . . . . . . . . . Impact Weapon . | . . . . . . . . . . . . . . . . Slashing Weapon 2 | . . . . . . . . 1 . . . . . . 1 Piercing Weapon 1 | . . . . . . . . . . . . . . . 1 Special Melee Weapon . | . . . . . . . . . . . . . . . . Unidentified Prototypes 4 | . . . . . 1 . . . 1 . . . . . 2 Corrupted Parts 1 | . . 1 . . . . . . . . . . . . . System Corruption 1 | . . 1 . . . . . . . . . . . . . Parts Lost 79 | . . 1 1 5 . 1 3 6 . 6 . 3 . 14 39 Power 23 | . . . . 1 . 1 1 3 . 1 . 2 . 3 11 Propulsion 28 | . . . . 2 . . 2 1 . 3 . 1 . 6 13 Utility 13 | . . . . 1 . . . 1 . . . . . 3 8 Weapon 15 | . . 1 1 1 . . . 1 . 2 . . . 2 7 Highest Loss Streak 21 | . . 1 1 6 . 1 3 3 . 2 . 3 . 5 21 To Critical Strikes 2 | . . . . . . . . . . 2 . . . . . Average Backups 3 | 3 4 4 3 1 1 2 2 2 3 2 1 4 4 4 3 Power . | . 1 1 . . . . . . . . . . . . . Propulsion . | . . . 1 . . . . . . . . . . . . Utility 2 | 1 1 2 1 . . . . . 2 2 1 3 3 2 2 Weapon 1 | 1 1 1 . . . 1 2 2 1 . . 1 1 1 . Tool/Special . | . . . . . . . . . . . . . . . . Unused Backups 10 | . . 2 . 1 . 1 . . . . . 2 . . 4 Power 1 | . . . . . . 1 . . . . . . . . . Propulsion 1 | . . . . . . . . . . . . . . . 1 Utility 7 | . . 1 . 1 . . . . . . . 2 . . 3 Weapon 1 | . . 1 . . . . . . . . . . . . . Tool/Special . | . . . . . . . . . . . . . . . . Average Slot Usage (%) 81 | . 68 56 89 73 70 75 66 79 68 78 82 88 95 90 88 Engine 2 | . 12 12 18 13 10 8 . 7 . . . . . . . Core 3 | . . . . . . 1 6 1 5 9 10 3 . . 4 Reactor 5 | . . . . . . . . . 5 5 5 6 10 11 8 Treads 3 | . . . . . . . 6 26 . . . . . . . Leg 13 | . 25 3 . . . . . . . . 17 27 30 24 23 Wheel 3 | . . . . . . . . 2 19 17 . . . . . Flight 3 | . . 6 32 37 40 40 21 . . . . . . . . Device 9 | . . . 8 4 . . 8 12 10 4 12 12 15 10 10 Processor 10 | . 8 12 10 10 10 10 8 7 6 11 10 10 10 15 11 Hackware 6 | . . . . 6 10 10 8 4 1 11 10 10 10 9 6 Protection 2 | . 12 1 . . . . . 2 5 . 1 . . . 2 Energy Gun 2 | . 7 . . . . 6 3 . . . . 7 10 6 . Energy Cannon 4 | . . . . . . . . 6 6 4 5 5 5 3 4 Ballistic Gun 3 | . . . . . . . . 2 . 5 3 . . 1 9 Ballistic Cannon 1 | . . . . . . . 4 . 4 1 . . . 1 1 Special Weapon 1 | . 1 15 18 3 . . . . . . . . . . . Slashing Weapon 2 | . . . . . . . . 3 1 5 5 5 5 3 1 Peak Build Rating 165 | 4 7 8 14 13 33 18 25 61 67 78 101 112 107 129 165 Average Rating 86 | 2 5 4 12 11 15 15 21 52 62 67 77 98 107 112 143 On Entrance 41 | . 4 7 6 13 13 15 18 25 47 67 49 101 107 107 89 Naked Turns . | . . . . . . . . . . . . . . . . Heaviest Build 88 | 6 8 8 11 10 21 6 13 44 55 59 59 61 54 76 88 Greatest Support 194 | 20 20 20 16 16 16 16 80 102 84 84 121 146 146 174 194 Greatest Overweight (x) 7 | 1 . . 1 . 1 . 1 1 1 1 1 . . 1 7 Average Overweight (x) . | . . . . . . . . . . . . . . . . Largest Inventory Capacity 5 | 5 5 5 5 5 5 5 5 5 5 5 5 5 5 5 5 Average Capacity 5 | 5 5 5 5 5 5 5 5 5 5 5 5 5 5 5 5 Most Carried 5 | 5 5 5 5 4 3 4 4 5 5 4 4 5 4 5 5 Average Carried 3 | 3 4 4 3 1 1 3 3 2 3 2 1 4 4 4 3 Final Capacity 5 | 5 5 5 5 5 5 5 5 5 5 5 5 5 5 5 5 Final Carried 5 | 5 5 4 4 . 3 3 4 3 5 2 4 4 4 5 3 Class Distribution -------------------- 23% | Hacker-Mutant 22% | Hacker-Gunner 21% | Hacker-Skirmisher 16% | Scavenger-Gunner 7% | Hacker-Sprinter 7% | Hacker-Assassin Dominant Class ---------------- Hacker-Mutant | -10/Materials Hacker-Mutant | -10/Mines Hacker-Sprinter | -9/Materials Hacker-Sprinter | -9/Mines Hacker-Sprinter | -9/Exiles Hacker-Sprinter | -8/Mines Hacker-Mutant | -8/Materials Hacker-Mutant | -7/Factory Hacker-Skirmisher | -6/Factory Hacker-Skirmisher | -5/Factory Hacker-Mutant | -4/Factory Hacker-Gunner | -4/Upper Caves Hacker-Gunner | -4/Upper Caves Hacker-Gunner | -3/Research Scavenger-Gunner | -2/Research Resources | -11 -10 -10 -9 -9 -9 -8 -8 -7 -6 -5 -4 -4 -4 -3 -2 ----------- Run | Yrd Mat Min Mat Min Exi Min Mat Fac Fac Fac Fac Upp Upp Res Res Matter Collected 4299 | 240 . 85 . 79 . 89 32 386 327 278 26 250 . 628 1879 Remotely . | . . . . . . . . . . . . . . . . Salvage Created 11079 | . . . . . . 102 62 848 1205 693 169 831 . 1869 5300 Parts 486 | . . 2 5 . . 2 9 44 59 39 7 34 . 75 210 Haulers Intercepted 1 | . . . . . . . . 1 . . . . . . . Recyclers Shooed 8 | . . . . . . . . . . . . . . 3 5 Parts Field Recycled . | . . . . . . . . . . . . . . . . Retrieved Matter . | . . . . . . . . . . . . . . . . Parts Self-Destructed . | . . . . . . . . . . . . . . . . Prevented . | . . . . . . . . . . . . . . . . Kills | -11 -10 -10 -9 -9 -9 -8 -8 -7 -6 -5 -4 -4 -4 -3 -2 ------- Run | Yrd Mat Min Mat Min Exi Min Mat Fac Fac Fac Fac Upp Upp Res Res Combat Hostiles Destroyed 161 | . . 6 . 1 . 2 4 19 20 17 5 13 . 20 54 Melee 2 | . . . . . . . . . . 1 . . . 1 . Guns 47 | . . . . . . 2 . 3 . 7 . 4 . 8 23 Cannons 67 | . . 6 . 1 . . 4 6 9 5 1 2 . 9 24 AOE 23 | . . . . . . . . 8 7 1 3 4 . . . Classes Destroyed 16 | . . 1 2 1 . 1 1 6 4 . . . . . . Worker 14 | . . . . . . . . . 7 . . . . 2 5 Builder 7 | . . . . . . . . 3 1 1 . . . 1 1 Tunneler 2 | . . . . . . . . 1 1 . . . . . . Hauler 1 | . . . . . . . . 1 . . . . . . . Recycler 11 | . . . . . . . . . 2 . . . . 3 6 Operator 2 | . . . 1 . . . . . . . 1 . . . . Watcher 13 | . . . 1 . . . 1 1 1 2 . . . 3 4 Swarmer 34 | . . 6 . . . . 2 2 . 9 4 2 . 3 6 Grunt 49 | . . . . . . 2 1 8 9 4 1 6 . 1 17 Brawler 3 | . . . . . . . . . 1 . . . . . 2 Duelist 3 | . . . . . . . 1 . . . . . . . 2 Sentry 16 | . . . . . . . . 4 2 2 . 2 . 3 3 Hunter 15 | . . . . . . . . 1 4 . . 2 . 4 4 Programmer 38 | . . . . . . . . 4 3 2 . . . 9 20 Behemoth 2 | . . . . . . . . . 1 . . 1 . . . Assembled 1 | . . . . 1 . . . . . . . . . . . Best Kill Streak 16 | . . 2 1 1 . 2 4 16 8 13 6 5 . 7 7 Combat Bots Only 12 | . . 2 . 1 . 2 4 12 4 5 5 5 . 4 5 Max Kills in Single Turn 8 | . . 1 1 1 . 1 1 5 8 2 3 1 . 2 3 Gunslinging 1 | . . . . . . . . . . . . . . . 1 Exploded 4 | . . . . . . . . 2 4 1 3 1 . . . Melee 1 | . . . . . . . . . . 1 . . . 1 . Uniques/NPCs Destroyed . | . . . . . . . . . . . . . . . . Combat | -11 -10 -10 -9 -9 -9 -8 -8 -7 -6 -5 -4 -4 -4 -3 -2 -------- Run | Yrd Mat Min Mat Min Exi Min Mat Fac Fac Fac Fac Upp Upp Res Res Hostile Shots Fired 1756 | . . 47 15 49 . 2 79 207 72 111 6 118 . 264 786 Missed 592 | . . 12 8 22 . 1 21 74 27 25 3 37 . 107 255 Hits 1164 | . . 35 7 27 . 1 58 133 45 86 3 81 . 157 531 Melee 12 | . . . . 5 . . 1 . 1 . . . . . 5 Projectile 1152 | . . 35 7 22 . 1 57 133 44 86 3 81 . 157 526 Critical Strikes 73 | . . . . . . . 5 3 1 4 . 7 . 10 43 Actively Blocked 33 | . . . . . . . . . . . . . . . 33 Part Disruptions 11 | . . . . 1 . . . 1 . 1 . . . 4 4 Damage Taken 15736 | . . 184 69 254 . 9 545 1771 447 990 34 1314 . 2043 8076 Core 2272 | . . 92 . 75 . . 58 131 10 70 . 109 . 264 1463 Absorbed by Shields . | . . . . . . . . . . . . . . . . Redirected to Shielding 24 | . . . . . . . . . 24 . . . . . . Ignored by Resistances 8895 | . . 136 43 151 . 5 339 813 251 597 22 769 . 1209 4560 Regen/Repaired (Parts) 248 | . . . 9 . . . . . 239 . . . . . . Core Remaining (%) 86 | 100 . 63 . . . 81 89 81 98 93 . . 90 79 . Volleys Fired 413 | . . 15 4 1 . 7 22 49 28 47 8 38 . 68 126 Largest 5 | . . 2 2 1 . 1 1 2 1 3 1 3 . 3 5 Hottest 503 | . . 200 200 100 . 40 40 140 100 130 88 293 . 293 503 Shots Fired 819 | . . 19 6 1 . 8 22 53 28 62 8 67 . 169 376 Gun 445 | . . . . . . 8 7 31 . 42 . 40 . 100 217 Cannon 342 | . . . . . . . 15 22 28 20 6 23 . 69 159 Launcher 6 | . . . . . . . . . . . 2 4 . . . Special 26 | . . 19 6 1 . . . . . . . . . . . Kinetic 427 | . . . . . . . 15 37 6 49 . . . 91 229 Thermal 340 | . . 19 6 1 . 8 7 16 22 13 . 49 . 52 147 Explosive 6 | . . . . . . . . . . . 2 4 . . . Electromagnetic 46 | . . . . . . . . . . . 6 14 . 26 . Robot Hit Streak 45 | . . 5 8 . . 8 8 13 13 16 8 28 . 27 45 Robot Miss Streak 8 | . . 1 . 1 . . 1 2 1 1 1 1 . 4 8 Penetration Max 4 | . . . . . . . . . . . . . . 3 4 Secondary Targets 5 | . . . . . . . . . . . . . . 1 4 Max Gunslinging Chain 1 | . . . . . . . . . . . . . . 1 1 Shots Hit Robots 631 | . . 13 5 . . 8 19 41 23 54 7 59 . 135 267 Core Hits 332 | . . 6 2 1 . 3 9 34 28 28 6 24 . 59 132 Critical Kills 52 | . . . . . . . . 2 4 2 . . . 12 32 Critical Parts Destroyed 64 | . . . . . . . . . . . . . . 18 46 Critical Strikes 131 | . . . . . . . 1 2 5 3 . . . 37 83 Burn 1 | . . . . . . . . . . . . . . 1 . Meltdown 17 | . . . . . . . . 2 4 2 . . . 2 7 Destroy 100 | . . . . . . . . . . . . . . 28 72 Blast 9 | . . . . . . . 1 . 1 1 . . . 4 2 Corrupt 2 | . . . . . . . . . . . . . . 2 . Sever 2 | . . . . . . . . . . . . . . . 2 Melee Attacks 48 | . . . . . . . . 21 9 5 1 . . 5 7 Impact . | . . . . . . . . . . . . . . . . Slashing 47 | . . . . . . . . 21 9 5 1 . . 5 6 Piercing 1 | . . . . . . . . . . . . . . . 1 Sneak Attacks . | . . . . . . . . . . . . . . . . Combat Hostiles . | . . . . . . . . . . . . . . . . Follow-up Attacks . | . . . . . . . . . . . . . . . . Damage Inflicted 25700 | . . 312 120 24 . 89 446 3989 4203 2030 553 2326 . 3660 7948 Guns 6305 | . . . . . . 89 56 519 . 606 . 1081 . 1339 2615 Cannons 13389 | . . . . . . . 390 1546 2337 969 200 738 . 2161 5048 Explosions 4935 | . . . . . . . . 1921 1788 366 353 507 . . . Melee 464 | . . . . . . . . . . 89 . . . 108 267 Ramming 151 | . . . . . . . . 3 78 . . . . 52 18 Kinetic 6470 | . . . . . . . 390 519 133 776 . . . 1711 2941 Thermal 16627 | . . 312 120 24 . 89 56 3389 3992 1165 . 1367 . 1391 4722 Explosive 860 | . . . . . . . . . . . 353 507 . . . Electromagnetic 1128 | . . . . . . . . 78 . . 200 452 . 398 . Impact . | . . . . . . . . . . . . . . . . Slashing 464 | . . . . . . . . . . 89 . . . 108 267 Piercing . | . . . . . . . . . . . . . . . . Highest Corruption 44 | . . 1 . 3 3 3 . 4 . . . . . . 44 Average Corruption 7 | . . 1 . 3 3 3 . 2 . . . . . . 9 Corruption Purged . | . . . . . . . . . . . . . . . . Corruption Blocked 13 | . . . . . . . . . . . . . . 13 . Effects 107 | . . 1 . 1 3 5 . 12 . . . . . . 85 Message Errors 20 | . . . . . 1 . . 3 . . . . . . 16 Matter Fused 27 | . . 1 . . 1 . . 5 . . . . . . 20 Heat Flow Errors 12 | . . . . . . 1 . . . . . . . . 11 Energy Discharges 8 | . . . . . . 1 . 1 . . . . . . 6 Parts Rejected 2 | . . . . . . . . 1 . . . . . . 1 Data Loss (minor) 10 | . . . . 1 . 1 . . . . . . . . 8 Data Loss (major) 5 | . . . . . . 1 . . . . . . . . 4 Misfires 5 | . . . . . . 1 . 1 . . . . . . 3 Alerts 4 | . . . . . 1 . . . . . . . . . 3 Misdirections 7 | . . . . . . . . . . . . . . . 7 Weapon Failures 7 | . . . . . . . . 1 . . . . . . 6 Overload Shots . | . . . . . . . . . . . . . . . . Overflow Damage 1878 | . . 8 . . . . 26 664 750 102 50 . . 119 159 Projectiles 1468 | . . 8 . . . . 26 487 606 79 35 . . 110 117 Explosions 341 | . . . . . . . . 177 144 5 15 . . . . Melee 69 | . . . . . . . . . . 18 . . . 9 42 Knockbacks 21 | . . . . . . . 6 . . 3 . . . 7 5 Impact 1 | . . . . . . . . . . . . . . . 1 Kinetic 18 | . . . . . . . 5 . . 2 . . . 7 4 Secondary 2 | . . . . . . . 1 . . 1 . . . . . Self-Inflicted Damage 458 | . . . . . . . . 392 38 25 3 . . . . Shots 10 | . . . . . . . . 8 . 1 1 . . . . Rammed 7 | . . . . . . . . 1 4 . . . . . 2 Targets Rammed 15 | . . . . . . . . 1 4 . . . . 7 3 Kicked 8 | . . . . . . . . . . . . . . 7 1 Crushed . | . . . . . . . . . . . . . . . . Highest Temperature 606 | . . 184 168 94 . 162 63 54 8 110 . 394 . 366 606 Average Temperature 102 | . . 79 56 33 . 46 21 31 6 52 . 146 . 122 119 Received Heat Transfer 2680 | . . . 18 40 . . 468 522 99 198 . 572 . 115 648 Effects 13 | . . . . . . . . . . . . 1 . . 12 Shutdowns 6 | . . . . . . . . . . . . . . . 6 Energy Bleed 2 | . . . . . . . . . . . . . . . 2 Interference 3 | . . . . . . . . . . . . 1 . . 2 Matter Decay 1 | . . . . . . . . . . . . . . . 1 Short Circuit 1 | . . . . . . . . . . . . . . . 1 Siege Activations . | . . . . . . . . . . . . . . . . Martial Activations . | . . . . . . . . . . . . . . . . Shielding Activations . | . . . . . . . . . . . . . . . . Robots Disrupted . | . . . . . . . . . . . . . . . . Combat Hostiles . | . . . . . . . . . . . . . . . . Robots Corrupted 5 | . . . . . . . . . . 1 1 3 . . . Combat Hostiles 5 | . . . . . . . . . . 1 1 3 . . . Parts Fried 6 | . . . . . . . . . . 1 1 3 . 1 . Impact Corruptions 2 | . . . . . . . . . . 1 . . . 1 . Robots Melted 18 | . . . . . . . . 2 4 2 . . . 3 7 Combat Hostiles 17 | . . . . . . . . 2 4 2 . . . 2 7 Parts Melted 37 | . . . . . . 1 . 3 6 4 . . . 8 15 Heat Transferred 15965 | . . 650 250 50 . 200 125 3010 3400 1102 . 1702 . 1591 3885 Parts Sabotaged 4 | . . . . . . . . . 4 . . . . . . Parts Stolen . | . . . . . . . . . . . . . . . . Parts Stripped . | . . . . . . . . . . . . . . . . Power Chain Reactions . | . . . . . . . . . . . . . . . . Alert | -11 -10 -10 -9 -9 -9 -8 -8 -7 -6 -5 -4 -4 -4 -3 -2 ------- Run | Yrd Mat Min Mat Min Exi Min Mat Fac Fac Fac Fac Upp Upp Res Res Maximum Alert Level 2 | . . . . . . . . 2 1 1 . . . . . Low Security (%) 89 | 100 100 100 100 100 . 100 100 92 60 48 100 . . 100 100 Level 1 9 | . . . . . . . . 1 39 51 . . . . . Level 2 . | . . . . . . . . 6 . . . . . . . Level 3 . | . . . . . . . . . . . . . . . . Level 4 . | . . . . . . . . . . . . . . . . Level 5 . | . . . . . . . . . . . . . . . . High Security . | . . . . . . . . . . . . . . . . Max Security . | . . . . . . . . . . . . . . . . Peak Influence 471 | . 3 51 30 . . 51 82 471 320 307 166 . . 124 172 Initial 149 | . . . . . . . . 8 149 9 73 . . . 39 Average 58 | . . 10 4 . . 7 21 58 161 145 20 . . 19 39 Influence Increases 5613 | . 3 152 49 . . 82 126 977 945 550 187 290 . 647 1605 Destroy 0b10 Robot/C 3220 | . . 120 . . . 60 80 380 400 340 100 260 . 400 1080 Destroy 0b10 Robot/NC 250 | . . . 10 . . . 5 30 60 15 5 . . 45 80 Destroy Leader 788 | . . 30 2 . . 20 22 124 132 64 10 30 . 116 238 Allied During Kill 2 | . . . . . . 2 . . . . . . . . . Successful Hack 54 | . 3 . 7 . . . . 6 . 5 6 . . . 27 Disable Machine 116 | . . . . . . . . 48 56 . . . . . 12 Anti-Garrison Action 300 | . . . . . . . . 150 150 . . . . . . Destroy Structure 643 | . . 2 . . . . 4 164 147 126 66 . . 26 108 Partial Spotted 45 | . . . . . . . 15 15 . . . . . 15 . Lose Combat Pursuer 195 | . . . 30 . . . . 60 . . . . . 45 60 Influence Decreases 5613 | . 3 152 49 . . 81 100 588 1333 373 256 426 . 553 1699 Entered New Map 565 | . . . . . . . 1 19 267 19 132 72 . . 55 Time Decay 4556 | . 3 151 49 . . 81 69 529 1020 294 124 349 . 444 1443 Lost Part 426 | . . 1 . . . . 10 40 . 60 . 5 . 109 201 Lost Ally 20 | . . . . . . . 20 . . . . . . . . Purge Threat 46 | . . . . . . . . . 46 . . . . . . Squads Dispatched 37 | . 1 . 1 . . . 2 8 9 2 1 . . 4 9 Investigation 4 | . 1 . . . . . . 1 2 . . . . . . Extermination 18 | . . . . . . . . 3 2 1 1 . . 3 8 Reinforcement 11 | . . . 1 . . . 2 2 4 1 . . . 1 . Assault 2 | . . . . . . . . 1 1 . . . . . . Garrison 2 | . . . . . . . . 1 . . . . . . 1 Intercept . | . . . . . . . . . . . . . . . . Searches Triggered . | . . . . . . . . . . . . . . . . Construction Impeded 4 | . . . . . . . . 1 2 . . . . 1 . Haulers Reinforced 1 | . . . . . . . . 1 . . . . . . . Active Scanning Responses . | . . . . . . . . . . . . . . . . Cargo Convoy Interrupts 1 | . . . . . . . . 1 . . . . . . . Stealth | -11 -10 -10 -9 -9 -9 -8 -8 -7 -6 -5 -4 -4 -4 -3 -2 --------- Run | Yrd Mat Min Mat Min Exi Min Mat Fac Fac Fac Fac Upp Upp Res Res Distress Signals 16 | . . . . . . . 1 . 3 2 . . . 2 8 Communications Jammed . | . . . . . . . . . . . . . . . . Distress Signals . | . . . . . . . . . . . . . . . . Times Spotted 260 | . . 6 7 20 . 3 14 33 22 23 6 14 . 29 83 Peak Tracking Total 20 | . 1 2 3 20 . 2 9 9 6 5 4 5 . 8 11 Tactical Retreats 11 | . . . 1 2 . . . 3 . . . . . 2 3 Traps | -11 -10 -10 -9 -9 -9 -8 -8 -7 -6 -5 -4 -4 -4 -3 -2 ------- Run | Yrd Mat Min Mat Min Exi Min Mat Fac Fac Fac Fac Upp Upp Res Res Traps Triggered 12 | . . . 1 . . . . 3 3 . 1 . . 2 2 Indirectly . | . . . . . . . . . . . . . . . . Trap Hack Attempts . | . . . . . . . . . . . . . . . . Triggered . | . . . . . . . . . . . . . . . . Disarmed . | . . . . . . . . . . . . . . . . Reprogrammed . | . . . . . . . . . . . . . . . . Reused . | . . . . . . . . . . . . . . . . Traps Extracted . | . . . . . . . . . . . . . . . . Installed . | . . . . . . . . . . . . . . . . Triggered . | . . . . . . . . . . . . . . . . Machines | -11 -10 -10 -9 -9 -9 -8 -8 -7 -6 -5 -4 -4 -4 -3 -2 ---------- Run | Yrd Mat Min Mat Min Exi Min Mat Fac Fac Fac Fac Upp Upp Res Res Machines Disabled 31 | . . . . . . . . 13 15 . . . . . 3 Max in Single Turn 5 | . . . . . . . . 5 5 . . . . . 1 Garrison Access 3 | . . . . . . . . 1 1 . . . . 1 . Machines Repaired . | . . . . . . . . . . . . . . . . Machines Dismantled . | . . . . . . . . . . . . . . . . Machines Sabotaged . | . . . . . . . . . . . . . . . . Overloaded Fab Kills . | . . . . . . . . . . . . . . . . Hacking | -11 -10 -10 -9 -9 -9 -8 -8 -7 -6 -5 -4 -4 -4 -3 -2 --------- Run | Yrd Mat Min Mat Min Exi Min Mat Fac Fac Fac Fac Upp Upp Res Res Machines Accessed 35 | . 3 1 5 . 2 . . 4 9 2 1 . . 3 5 Terminals 24 | . 3 . 4 . . . . 4 5 2 . . . 2 4 Fabricators 1 | . . . . . . . . . . . 1 . . . . Repair Stations 5 | . . . 1 . . . . . 3 . . . . . 1 Recycling Units . | . . . . . . . . . . . . . . . . Scanalyzers . | . . . . . . . . . . . . . . . . Garrison Access 2 | . . . . . . . . . 1 . . . . 1 . Total Hacks 92 | . 8 1 10 . 24 . . 9 15 7 3 . . 5 10 Successful 59 | . 4 1 6 . 24 . . 5 6 5 1 . . 3 4 Failed 33 | . 4 . 4 . . . . 4 9 2 2 . . 2 6 Catastrophic 8 | . 1 . . . . . . 2 3 . . . . 1 1 Database Lockouts . | . . . . . . . . . . . . . . . . Manual 35 | . 5 . 4 . 1 . . 7 8 1 . . . 1 8 Terminals 51 | . 8 . 7 . . . . 9 9 7 . . . 3 8 Fabricators 3 | . . . . . . . . . . . 3 . . . . Repair Stations 10 | . . . 3 . . . . . 5 . . . . . 2 Recycling Units . | . . . . . . . . . . . . . . . . Scanalyzers . | . . . . . . . . . . . . . . . . Garrison Access 3 | . . . . . . . . . 1 . . . . 2 . Terminal Hacks 48 | . 4 1 3 . 24 . . 4 2 5 . . . 2 3 Record 30 | . . . . . 24 . . 1 . 3 . . . 2 . Part Schematic 1 | . . . . . . . . . . 1 . . . . . Open Door 1 | . . 1 . . . . . . . . . . . . . Open DSF 1 | . . . . . . . . . 1 . . . . . . Level Access Points 2 | . . . . . . . . 1 . 1 . . . . . Branch Access Points 1 | . 1 . . . . . . . . . . . . . . Emergency Access Points 1 | . . . . . . . . . . . . . . . 1 Alert Level 3 | . . . . . . . . 2 . . . . . . 1 Unreport Threat 1 | . . . . . . . . . 1 . . . . . . Locate Traps 2 | . 1 . 1 . . . . . . . . . . . . Recall Investigation 1 | . 1 . . . . . . . . . . . . . . Zone Layout 4 | . 1 . 2 . . . . . . . . . . . 1 Fabricator Hacks 1 | . . . . . . . . . . . 1 . . . . Build 1 | . . . . . . . . . . . 1 . . . . Repair Station Hacks 8 | . . . 3 . . . . . 4 . . . . . 1 Scan Component 5 | . . . 2 . . . . . 2 . . . . . 1 Repair 3 | . . . 1 . . . . . 2 . . . . . . Recycling Unit Hacks . | . . . . . . . . . . . . . . . . Scanalyzer . | . . . . . . . . . . . . . . . . Garrison Access Hacks 1 | . . . . . . . . . . . . . . 1 . Seal Access 1 | . . . . . . . . . . . . . . 1 . Unauthorized Hacks 1 | . . . . . . . . 1 . . . . . . . Terminals 1 | . . . . . . . . 1 . . . . . . . Sabotage 1 | . . . . . . . . 1 . . . . . . . Fabricators . | . . . . . . . . . . . . . . . . Repair Stations . | . . . . . . . . . . . . . . . . Recycling Units . | . . . . . . . . . . . . . . . . Scanalyzers . | . . . . . . . . . . . . . . . . Garrison Access . | . . . . . . . . . . . . . . . . Data Cores Recovered 2 | . . . 1 . . . . . . . 1 . . . . Used . | . . . . . . . . . . . . . . . . Hacking Detections 24 | . 2 . 3 . . . . 3 7 1 1 . . 3 4 Full Trace Events 2 | . 1 . . . . . . . 1 . . . . . . Feedback Events . | . . . . . . . . . . . . . . . . Feedback Blocked . | . . . . . . . . . . . . . . . . Robot Schematics Acquired . | . . . . . . . . . . . . . . . . Robots Built . | . . . . . . . . . . . . . . . . Authchips . | . . . . . . . . . . . . . . . . Time . | . . . . . . . . . . . . . . . . Total Robot Build Rating . | . . . . . . . . . . . . . . . . Part Schematics Acquired 1 | . . . . . . . . . . 1 . . . . . Parts Built 1 | . . . . . . . . . . . 1 . . . . Authchips . | . . . . . . . . . . . . . . . . Time 69 | . . . . . . . . . . . 69 . . . . Total Part Build Rating 9 | . . . . . . . . . . . 9 . . . . Parts Repaired 3 | . . . 1 . . . . . 2 . . . . . . Time 150 | . . . 26 . . . . . 124 . . . . . . Parts Recycled . | . . . . . . . . . . . . . . . . Recycled Matter . | . . . . . . . . . . . . . . . . Retrieved Matter . | . . . . . . . . . . . . . . . . Retrieved Components . | . . . . . . . . . . . . . . . . Parts Scanalyzed . | . . . . . . . . . . . . . . . . Part Schematics Acquired . | . . . . . . . . . . . . . . . . Parts Damaged . | . . . . . . . . . . . . . . . . Bothacking | -11 -10 -10 -9 -9 -9 -8 -8 -7 -6 -5 -4 -4 -4 -3 -2 ------------ Run | Yrd Mat Min Mat Min Exi Min Mat Fac Fac Fac Fac Upp Upp Res Res Used RIF Installer . | . . . . . . . . . . . . . . . . Robots Hacked . | . . . . . . . . . . . . . . . . Non-combat . | . . . . . . . . . . . . . . . . Combat . | . . . . . . . . . . . . . . . . Robot Hacks Applied . | . . . . . . . . . . . . . . . . Relay Couplers Released 6 | . . . . . . . . 2 1 . . . . 3 . Machine Destruction 3 | . . . . . . . . 2 1 . . . . . . Programmers 3 | . . . . . . . . . . . . . . 3 . Fabnet Peak Effective % . | . . . . . . . . . . . . . . . . Robots Rewired . | . . . . . . . . . . . . . . . . Allies Hacked . | . . . . . . . . . . . . . . . . Hacks Repelled . | . . . . . . . . . . . . . . . . Allies | -11 -10 -10 -9 -9 -9 -8 -8 -7 -6 -5 -4 -4 -4 -3 -2 -------- Run | Yrd Mat Min Mat Min Exi Min Mat Fac Fac Fac Fac Upp Upp Res Res Total Allies 3 | . . . . 3 . . . . . . . . . . . Largest Group 3 | . . . . 3 3 3 2 . . . . . . . . Highest-Rated Group 40 | . . . . 40 40 40 32 . . . . . . . . Highest-Rated Ally 16 | . . . . 16 16 16 16 . . . . . . . . Total Orders 6 | . . . . 3 . 3 . . . . . . . . . GUARD 3 | . . . . 2 . 1 . . . . . . . . . AID 3 | . . . . 1 . 2 . . . . . . . . . Ally Attacks 16 | . . . . . . 16 . . . . . . . . . Total Damage 204 | . . . . . . 204 . . . . . . . . . Kills 1 | . . . . . . 1 . . . . . . . . . Allies Corrupted . | . . . . . . . . . . . . . . . . Allies Melted . | . . . . . . . . . . . . . . . . Intel | -11 -10 -10 -9 -9 -9 -8 -8 -7 -6 -5 -4 -4 -4 -3 -2 ------- Run | Yrd Mat Min Mat Min Exi Min Mat Fac Fac Fac Fac Upp Upp Res Res Active Infowar (turns) 1046 | . . 2 215 28 . . . . . . . . . 441 360 Sensors 245 | . . 2 215 28 . . . . . . . . . . . IFF 801 | . . . . . . . . . . . . . . 441 360 Robot Analysis Total . | . . . . . . . . . . . . . . . . Derelict Logs Recovered 2 | . . . . . . . . . . . . 2 . . . Drone Launches . | . . . . . . . . . . . . . . . . Drone Recoveries . | . . . . . . . . . . . . . . . . Exploration | -11 -10 -10 -9 -9 -9 -8 -8 -7 -6 -5 -4 -4 -4 -3 -2 ------------- Run | Yrd Mat Min Mat Min Exi Min Mat Fac Fac Fac Fac Upp Upp Res Res Turns Passed 11337 | 49 134 483 241 84 223 231 145 1493 1424 583 500 1264 48 1469 2966 Spaces Moved 8181 | 41 103 726 233 158 554 235 218 752 1058 426 321 957 40 841 1518 Core 41 | 15 . . 1 . . . . . . . . . . . 25 Treads 640 | . . . . . . . 16 598 . . . . . . 26 Legs 3729 | 26 103 39 . . . . . . . . 256 957 40 841 1467 Wheels 1703 | . . . . . . . . 154 1058 426 65 . . . . Hover 252 | . . 216 36 . . . . . . . . . . . . Flight 1816 | . . 471 196 158 554 235 202 . . . . . . . . Fastest Speed 26 | 50 120 40 26 26 26 26 26 93 92 96 115 120 120 116 50 Average Speed 97 | 95 120 50 31 27 27 26 41 154 98 99 120 120 120 119 121 Slowest Speed 400 | 120 120 120 115 32 106 32 170 170 115 115 190 120 120 190 400 Overloaded Moves . | . . . . . . . . . . . . . . . . Propulsion Burnouts . | . . . . . . . . . . . . . . . . Robots Hopped 4 | . . 1 . 3 . . . . . . . . . . . Potential Cave-ins 29 | . . . . . . . . 23 6 . . . . . . Cave-ins Triggered 3 | . . . . . . . . 2 . . . . . . 1 Exploration Rate (%) 36 | 4 23 97 26 45 92 47 19 22 32 14 10 89 10 17 43 Regions Visited 15 Branch Regions 6 Pre-discovered Areas 2 | . . . . . 1 . . . . . . 1 . . . Known Exits Taken 15 | 1 1 1 1 1 1 1 1 1 1 1 1 1 1 1 . Unknown Exits Taken . | . . . . . . . . . . . . . . . . Scrap Searched 5 | . . 2 . . . . . . . . . 3 . . . Spaces Dug 39 | . . . . . . . . 22 9 3 1 . . 2 2 Terrain Destroyed 584 | . . 2 . . . . 4 193 184 69 35 51 . 12 34 Melee 38 | . . . . . . . . 21 9 3 1 . . 2 2 Projectile 57 | . . 2 . . . . 4 5 4 3 . 2 . 9 28 AOE 484 | . . . . . . . . 167 171 63 34 49 . . . Terrain Rammed . | . . . . . . . . . . . . . . . . Walls Destroyed . | . . . . . . . . . . . . . . . . Machines Disabled . | . . . . . . . . . . . . . . . . Actions | -11 -10 -10 -9 -9 -9 -8 -8 -7 -6 -5 -4 -4 -4 -3 -2 --------- Run | Yrd Mat Min Mat Min Exi Min Mat Fac Fac Fac Fac Upp Upp Res Res Total 10576 | 49 113 788 379 192 622 395 249 967 1349 509 421 1011 40 1150 2342 Wait 1626 | . 3 33 127 32 65 150 . 97 223 23 74 . 1 196 602 Move 8156 | 40 102 723 232 151 553 234 217 749 1057 425 320 956 39 840 1518 Hop 4 | . . 1 . 3 . . . . . . . . . . . Pick Up 48 | 5 3 . 3 . 2 1 1 5 3 1 4 3 . 6 11 Fast Attach 120 | 4 1 4 6 . . 2 5 17 12 3 7 8 . 13 38 Attach 39 | . 3 2 3 3 1 . 1 6 1 4 2 . . 3 10 Detach 12 | . . 3 . . 1 . 1 3 . . 1 . . 1 2 Swap 20 | . . . 1 1 . . . 5 4 . 1 . . 4 4 Drop 67 | . 1 7 3 1 . 1 2 12 2 1 3 6 . 7 21 Fire 413 | . . 15 4 1 . 7 22 49 28 47 8 38 . 68 126 Melee 48 | . . . . . . . . 21 9 5 1 . . 5 7 Ram 7 | . . . . . . . . 1 4 . . . . . 2 Kick 8 | . . . . . . . . . . . . . . 7 1 Crush . | . . . . . . . . . . . . . . . . Escape Stasis 8 | . . . . . . . . 2 6 . . . . . . Rewire . | . . . . . . . . . . . . . . . . Trap . | . . . . . . . . . . . . . . . . Miscellaneous . | . . . . . . . . . . . . . . . . Route ------- -11/Scrapyard -10/Materials (discovered 2 exits: *Min x2) -10/Mines (discovered 2 exits: *Mat x2) -9/Materials -9/Mines -9/Exiles (discovered 2 exits: *Min x2) -8/Mines -8/Materials -7/Factory (discovered 5 exits: *Fac x4 / *Low) -6/Factory -5/Factory (discovered 4 exits: *Fac x4) -4/Factory -4/Upper Caves -4/Upper Caves -3/Research -2/Research History --------- Turn | Location | Event 9 | -11/Scrapyard | Identified exit to Materials 9 | -11/Scrapyard | Discovered exit to Materials (range 15) 50 | -11/Scrapyard | Entered Materials 50 | -10/Materials | Evolved 1 slot: Propulsion x1 130 | -10/Materials | Identified exit to Mines 184 | -10/Materials | Entered Mines 307 | -10/Mines | Build established: Hacker-Mutant 317 | -10/Mines | Identified exit to Materials 317 | -10/Mines | Discovered exit to Materials (range 11) 440 | -10/Mines | Found a Scrap Suit stashed away for nefarious purposes 511 | -10/Mines | Discovered exit to Materials (range 8) 559 | -10/Mines | Met a Derelict who couldn't figure out how to use a Trap Extractor 667 | -10/Mines | Entered Materials 667 | -9/Materials | Evolved 2 slots: Power x1, Propulsion x1 750 | -9/Materials | Repaired Sensor Array 894 | -9/Materials | Identified exit to Mines 894 | -9/Materials | Discovered exit to Mines (range 12) 908 | -9/Materials | Entered Mines 914 | -9/Mines | Assembled infested the area 956 | -9/Mines | Assisted by bots powering up and referring to "LRC-V3" 960 | -9/Mines | Build established: Hacker-Sprinter 962 | -9/Mines | Deemed a non-threat by the Exiles lab entrance 962 | -9/Mines | Identified exit to Exiles 962 | -9/Mines | Discovered exit to Exiles (range 5) 967 | -9/Mines | Lost 6 parts (1p2n1u2w) 992 | -9/Mines | Entered Exiles 992 | -9/Exiles | Accompanied by 3 allies 998 | -9/Exiles | Identified exit to Mines 998 | -9/Exiles | Discovered exit to Mines (range 14) 1003 | -9/Exiles | Met 8R-AWN 1006 | -9/Exiles | Met EX-HEX 1016 | -9/Exiles | Met EX-DEC 1019 | -9/Exiles | Learned location of Zion (-7) 1029 | -9/Exiles | Discovered exit to Mines (range 15) 1055 | -9/Exiles | Visited The Gauntlet 1094 | -9/Exiles | Met EX-BIN 1104 | -9/Exiles | Aligned with FarCom system 1104 | -9/Exiles | Given EX-Vault access code 1110 | -9/Exiles | Opened EX-Vault 1111 | -9/Exiles | Found Prototype Energy Cannon 1112 | -9/Exiles | Identified YOLO Cannon 1132 | -9/Exiles | Warned to stay clear of 0b10 Research branches 1215 | -9/Exiles | Left Exiles lab with YOLO Cannon 1215 | -9/Exiles | Entered Mines 1215 | -8/Mines | Accompanied by 3 allies 1319 | -8/Mines | Identified exit to Materials 1319 | -8/Mines | Discovered exit to Materials (range 4) 1446 | -8/Mines | Entered Materials 1446 | -8/Materials | Accompanied by 2 allies 1446 | -8/Materials | Evolved 2 slots: Propulsion x1, Utility x1 1584 | -8/Materials | Identified exit to Factory 1584 | -8/Materials | Discovered exit to Factory (range 4) 1589 | -8/Materials | Lost 3 parts (1p2n) 1591 | -8/Materials | Entered Factory 1591 | -7/Factory | Evolved 2 slots: Utility x1, Weapon x1 1991 | -7/Factory | Identified exit to Factory 2072 | -7/Factory | Build established: Hacker-Mutant 2496 | -7/Factory | Crushed by falling debris 2499 | -7/Factory | Crushed by falling debris 2965 | -7/Factory | Garrison activated, responded to threat 2998 | -7/Factory | Cargo convoy interrupted 3002 | -7/Factory | Build established: Hacker-Skirmisher 3022 | -7/Factory | Destroyed 12 combat bots 3031 | -7/Factory | Lost 3 parts (2p1n) 3068 | -7/Factory | Identified exit to Lower Caves 3068 | -7/Factory | Discovered exit to Lower Caves (range 10) 3084 | -7/Factory | Entered another Factory area 3084 | -6/Factory | Evolved 2 slots: Power x1, Propulsion x1 3592 | -6/Factory | Repaired Arm. Huge Wheel 3761 | -6/Factory | Repaired Cold Fusion Reactor 4429 | -6/Factory | Spotted B-75 Beast 4432 | -6/Factory | Destroyed B-75 Beast 4444 | -6/Factory | Build established: Hacker-Mutant 4474 | -6/Factory | Identified exit to Factory 4474 | -6/Factory | Discovered exit to Factory (range 16) 4508 | -6/Factory | Entered another Factory area 4508 | -5/Factory | Evolved 2 slots: Utility x1, Weapon x1 4801 | -5/Factory | Build established: Hacker-Skirmisher 4832 | -5/Factory | Identified exit to Factory 5091 | -5/Factory | Entered another Factory area 5091 | -4/Factory | Evolved 2 slots: Utility x2 5227 | -4/Factory | Build established: Hacker-Mutant 5395 | -4/Factory | Fabricated Centrium Leg (x1) 5570 | -4/Factory | Identified exit to Upper Caves 5570 | -4/Factory | Discovered exit to Upper Caves (range 16) 5591 | -4/Factory | Entered Upper Caves 5694 | -4/Upper Caves | Attracted the attention of an 0b10 checkpoint 5902 | -4/Upper Caves | Build established: Hacker-Gunner 5967 | -4/Upper Caves | Attracted the attention of an 0b10 outpost 6065 | -4/Upper Caves | Spotted B-86 Titan 6129 | -4/Upper Caves | Destroyed B-86 Titan 6135 | -4/Upper Caves | Lost 3 parts (2p1n) 6223 | -4/Upper Caves | Encountered a Warlord checkpoint 6681 | -4/Upper Caves | Identified exit to Upper Caves 6689 | -4/Upper Caves | Learned location of Testing (-2) 6855 | -4/Upper Caves | Entered another Upper Caves area 6883 | -4/Upper Caves | Identified exit to Research 6883 | -4/Upper Caves | Discovered exit to Research (range 7) 6903 | -4/Upper Caves | Entered Research 6903 | -3/Research | Evolved 2 slots: Propulsion x1, Utility x1 7492 | -3/Research | Build established: Hacker-Assassin 7651 | -3/Research | Lost 3 parts (2n1u) 7943 | -3/Research | Build established: Hacker-Gunner 8095 | -3/Research | Lost 5 parts (2p2n1w) 8180 | -3/Research | Lost 3 parts (1p1n1u) 8354 | -3/Research | Identified exit to Research 8354 | -3/Research | Discovered exit to Research (range 15) 8372 | -3/Research | Entered another Research area 8372 | -2/Research | Evolved 2 slots: Power x1, Weapon x1 8674 | -2/Research | Build established: Hacker-Assassin 9044 | -2/Research | Build established: Hacker-Gunner 9437 | -2/Research | Garrison activated, responded to threat 9562 | -2/Research | Build established: Scavenger-Gunner 10299 | -2/Research | Crushed by falling debris 10319 | -2/Research | System corruption reached 10% 10330 | -2/Research | Lost 3 parts (1p2u) 10447 | -2/Research | Lost 3 parts (1p1n1u) 10827 | -2/Research | Lost 6 parts (2p3n1u) 11055 | -2/Research | Spotted B-90 Cyclops 11260 | -2/Research | System corruption reached 30% 11271 | -2/Research | Core integrity fell below 50% 11329 | -2/Research | Core integrity fell below 20% 11338 | -2/Research | Destroyed by P-80 Master with Gamma Rifle Last Messages --------------- P-80 Master resets P-80 Master, system corruption cleaned. K-01 Serf cleans the Antimatter Diverter. P-80 Master resets P-80 Master, system corruption cleaned. Imp. Heavy Siege Treads destroyed. P-80 Master resets P-80 Master, system corruption cleaned. P-80 Master resets T-07 Excavator, system corruption cleaned. System corrupted: Component data lost. P-80 Master resets P-80 Master, system corruption cleaned. Cld. Antimatter Reactor destroyed. P-80 Master resets P-80 Master, system corruption cleaned. Slammed into P-80 Master. Destabilizing: Core damaged (-58). Penetrated by Slug. Slug penetrates Wall. Map ----- +----------------------------------------------------+ | ?????########*%!=#??????????????????????????? | | ?##########?# == #??????????????????????????? | | #|%! ###+####???????????????????? | | + #???????????????????? | | ! # #???????????????????? | | # #???????????????????? | | ?# #???????????????????? | | ###########?######## #???????????????????? | | ???????????????###?# #???????????????????? | | ????????????####T ## #???????????????????? | | ????????##### #???????????????????? | | ?????? #???????????????????? | | ?????????#### ###???###???????????? | | ????????????# # """ ???????????? | | ????????????##+##### # """ #??????????? | | ???????????????????# # """ #??????????? | | ???????????????????# # #??????????? | | ???????????????????+^ / #??????????? | | ???????????????????#^^ # [#??????????? | | ???????????????????#^ # [ #??????????? | | ??????????p????????# # [ #??????????? | | ???????????????????# #? ?? #??????????? | | ???????????????????# ###+#######?????????? | | ???????????????##### # #?????????? | | ???????? + #?????????? | | ???????? #@ p #?????????? | | ???????? # Y""" #?????????? | | ???????? """ # p"""t !#?????????? | | ????????????"" =######## p""" #?????????? | | ????????????"" ???????# p #?????????? | | ????????????"" ????????# p #?????????? | | ????????????"" ?????????###########?????????? | | ???????????? ??????????????????????????????? | | ????????????????????????????????????????????? | | ????????????????????????????????????????????? | | ????????????????????????????????????????????? | | ????????????????????????????????????????????? | | ????????????????w???????????????????????????? | | ????????????????????????????????????????????? | | ????????????????????????????????????????????? | | ????????????????????????????????????????????? | | ????????????????????????????????????????????? | | ????????????????????????????????????????????? | | ????????????????????????????????????????????? | | ????????????????????????????????????????????? | | ????????????????????????????????????????????? | | ????????????????????????????????????????????? | | ????????????????????????????????????????????? | | ????????????????????????????????????????????? | | ????????????????????????????????????????????? | +----------------------------------------------------+ Best States ------------- Heat Dissipation 111 Energy Generation 67 Energy Capacity 990 Matter Stores 300 Matter Capacity 300 Sight Range 16 Robot Scan Range 14 Terrain Scan Density 10 Power Amplification 20 Base Temperature (-) 100 Corruption Containment 8 Corruption Block 13 Armor Coverage 225 Resistance: KI 35 Resistance: TH 35 Resistance: EX 35 Resistance: EM 35 Resistance: I 35 Resistance: S 35 Resistance: P 35 Propulsion Shielding 33 Melee Speed Boost 30 Evasion (%) 70 Targeting Accuracy 5 Target Analysis 12 Recoil Reduction 5 Offensive Hacking 40 Item Schematics ----------------- Phase Gun | -5/Factory | Hacked Robot Schematics ------------------ None Fabricated ------------ Centrium Leg | x1 | -4/Factory | Preloaded Repaired ---------- Sensor Array | 55% | -9/Materials Arm. Huge Wheel | 26% | -6/Factory Cold Fusion Reactor | 64% | -6/Factory Alien Tech Used ----------------- None Achievements -------------- Hunted Slippery One Challenges ------------ None Game ------ Seed MultitargetingIonRipper Manual? 0 Play Time 02:15:56 Cumulative 22.2 hours Start 2025.06.08 @ 14:44:19 End 2025.06.17 @ 20:33:12 Sessions 5 Manual Loads 0 Difficulty Explorer Special Mode None Game No. 24 Rogue 6 Adventurer 5 Explorer 13 Win Type - Total 0 Types 0/0/0/0/0/0/0/0/0/0 Lore% 10 Gallery% 29 Achievement% 28 Wizard Run 0 Options --------- Layout 2 ASCII 0 Keyboard 0 Movement Mouse Keybinds 0 Fullscreen 1 Font 32/Cog Map View 50x49 Zoom Use 0% Tactical HUD 0 Map Filters NONE Filters NONE Steam 1 RUN: 3a698812-4140-4e1c-901f-880fe2a4fc8c